[Event "Early-Titled-Tuesday-Blitz-October-17-2023"]
[Site "Chess.com"]
[Date "2023.10.17"]
[Round "2"]
[White "Chessdreamer2020"]
[Black "falzehope0"]
[Result "1-0"]
[WhiteElo "2530"]
[BlackElo "2325"]
[TimeControl "180+1"]
[EndTime "8:19:06 PDT"]
[Termination "Chessdreamer2020 won on time"]

1. e4 {[%clk 0:03:00]} 1... d5 {[%clk 0:02:59.1]} 2. exd5 {[%clk 0:02:58.5]}
2... Nf6 {[%clk 0:02:58.8]} 3. Bb5+ {[%clk 0:02:58.4]} 3... Nbd7 {[%clk
0:02:57.1]} 4. Nf3 {[%clk 0:02:58]} 4... g6 {[%clk 0:02:52.3]} 5. O-O {[%clk
0:02:57.5]} 5... Bg7 {[%clk 0:02:52.6]} 6. d4 {[%clk 0:02:56.5]} 6... O-O {[%clk
0:02:52.8]} 7. c4 {[%clk 0:02:56.4]} 7... Nb6 {[%clk 0:02:50.7]} 8. Nbd2 {[%clk
0:02:49.6]} 8... a6 {[%clk 0:02:47.7]} 9. Ba4 {[%clk 0:02:49]} 9... Nxc4 {[%clk
0:02:41.2]} 10. Nxc4 {[%clk 0:02:48.7]} 10... b5 {[%clk 0:02:41.5]} 11. Nce5
{[%clk 0:02:22.7]} 11... bxa4 {[%clk 0:02:31.5]} 12. Nc6 {[%clk 0:02:22.9]}
12... Qd6 {[%clk 0:02:23.2]} 13. Bg5 {[%clk 0:02:08.1]} 13... Nxd5 {[%clk
0:02:22.2]} 14. Qxa4 {[%clk 0:02:03]} 14... Bd7 {[%clk 0:02:13.2]} 15. Rac1
{[%clk 0:01:58.3]} 15... Rfb8 {[%clk 0:02:04.9]} 16. Nfe5 {[%clk 0:01:30.9]}
16... Bxc6 {[%clk 0:00:55.4]} 17. Rxc6 {[%clk 0:01:25.5]} 17... Qd8 {[%clk
0:00:47.3]} 18. Bc1 {[%clk 0:01:10]} 18... Rb4 {[%clk 0:00:45.3]} 19. Qd1 {[%clk
0:01:08.7]} 19... Nf6 {[%clk 0:00:31.7]} 20. Nf3 {[%clk 0:01:04]} 20... Rb7
{[%clk 0:00:28.8]} 21. b3 {[%clk 0:00:59.8]} 21... Qd5 {[%clk 0:00:28.4]} 22.
Qc2 {[%clk 0:00:59.3]} 22... Ne8 {[%clk 0:00:26.3]} 23. Ba3 {[%clk 0:00:55.8]}
23... e6 {[%clk 0:00:24.1]} 24. Rd1 {[%clk 0:00:48.4]} 24... a5 {[%clk
0:00:24.1]} 25. Rc5 {[%clk 0:00:47.8]} 25... Qd7 {[%clk 0:00:22.6]} 26. d5
{[%clk 0:00:45.9]} 26... Bf8 {[%clk 0:00:19.8]} 27. dxe6 {[%clk 0:00:44.1]}
27... Qxe6 {[%clk 0:00:18.4]} 28. Re5 {[%clk 0:00:44.3]} 28... Qf6 {[%clk
0:00:14]} 29. Bb2 {[%clk 0:00:43.2]} 29... Qb6 {[%clk 0:00:10.5]} 30. Qe2 {[%clk
0:00:37.6]} 30... Ng7 {[%clk 0:00:09]} 31. Rd7 {[%clk 0:00:33.5]} 31... Ne6
{[%clk 0:00:08.3]} 32. h4 {[%clk 0:00:26.4]} 32... Bg7 {[%clk 0:00:07.9]} 33.
Red5 {[%clk 0:00:24.6]} 33... Bxb2 {[%clk 0:00:07.2]} 34. Qxb2 {[%clk
0:00:25.5]} 34... Qc6 {[%clk 0:00:07.5]} 35. Ne5 {[%clk 0:00:20.4]} 35... Qb6
{[%clk 0:00:06.4]} 36. Nxf7 {[%clk 0:00:18.4]} 36... Ng7 {[%clk 0:00:02.8]} 37.
Nh6+ {[%clk 0:00:18.1]} 1-0

[Event "Early-Titled-Tuesday-Blitz-October-17-2023"]
[Site "Chess.com"]
[Date "2023.10.17"]
[Round "2"]
[White "vladislavkovalev"]
[Black "kikoveiga"]
[Result "1-0"]
[WhiteElo "2867"]
[BlackElo "2589"]
[TimeControl "180+1"]
[EndTime "8:19:10 PDT"]
[Termination "vladislavkovalev won by checkmate"]

1. e4 {[%clk 0:03:00.9]} 1... Nc6 {[%clk 0:02:58.1]} 2. d4 {[%clk 0:02:59.6]}
2... d5 {[%clk 0:02:58.1]} 3. Nc3 {[%clk 0:02:59.3]} 3... dxe4 {[%clk
0:02:57.5]} 4. d5 {[%clk 0:02:59.9]} 4... Ne5 {[%clk 0:02:58.2]} 5. Qd4 {[%clk
0:02:58.4]} 5... Ng6 {[%clk 0:02:58.2]} 6. Be3 {[%clk 0:02:53.7]} 6... Nf6
{[%clk 0:02:58.2]} 7. O-O-O {[%clk 0:02:50.7]} 7... e5 {[%clk 0:02:51.8]} 8.
dxe6 {[%clk 0:02:28.9]} 8... Bxe6 {[%clk 0:02:46]} 9. Qa4+ {[%clk 0:02:29.1]}
9... Bd7 {[%clk 0:02:44.8]} 10. Qb3 {[%clk 0:02:29.9]} 10... Qc8 {[%clk
0:02:38.5]} 11. Bc4 {[%clk 0:01:54.8]} 11... Ne5 {[%clk 0:02:31.4]} 12. Bd4
{[%clk 0:01:53.1]} 12... Nxc4 {[%clk 0:02:14.7]} 13. Qxc4 {[%clk 0:01:54]} 13...
Be7 {[%clk 0:02:10.3]} 14. Bxf6 {[%clk 0:01:43.2]} 14... Bxf6 {[%clk 0:02:11.2]}
15. Nxe4 {[%clk 0:01:43.8]} 15... Be7 {[%clk 0:02:08.3]} 16. Nc5 {[%clk
0:01:43.7]} 16... Bc6 {[%clk 0:02:05.6]} 17. Nf3 {[%clk 0:01:32.6]} 17... O-O
{[%clk 0:01:59.8]} 18. Rhe1 {[%clk 0:01:33]} 18... Bxc5 {[%clk 0:01:58.6]} 19.
Qxc5 {[%clk 0:01:33.2]} 19... Qg4 {[%clk 0:01:57.9]} 20. Ne5 {[%clk 0:01:27.2]}
20... Qg5+ {[%clk 0:01:54.6]} 21. Re3 {[%clk 0:01:17.5]} 21... Rad8 {[%clk
0:01:50.6]} 22. Re1 {[%clk 0:00:58.9]} 22... Rd5 {[%clk 0:01:13.7]} 23. Qc3
{[%clk 0:00:57.6]} 23... Bb5 {[%clk 0:00:31.5]} 24. b3 {[%clk 0:00:46.4]} 24...
f6 {[%clk 0:00:25.4]} 25. Nf3 {[%clk 0:00:36.4]} 25... Qxg2 {[%clk 0:00:24.4]}
26. Nd4 {[%clk 0:00:32.3]} 26... Bd7 {[%clk 0:00:21.6]} 27. Kb2 {[%clk
0:00:15.3]} 27... Qxf2 {[%clk 0:00:19.2]} 28. a4 {[%clk 0:00:03.6]} 28... c5
{[%clk 0:00:18.7]} 29. Nb5 {[%clk 0:00:03.9]} 29... Bxb5 {[%clk 0:00:18.4]} 30.
axb5 {[%clk 0:00:04.8]} 30... Qf4 {[%clk 0:00:07.1]} 31. Re4 {[%clk 0:00:04.9]}
31... Qd6 {[%clk 0:00:06.8]} 32. Qc4 {[%clk 0:00:04.6]} 32... Rd8 {[%clk
0:00:03.6]} 33. Re7 {[%clk 0:00:03.1]} 33... Kf8 {[%clk 0:00:03.1]} 34. Rxb7
{[%clk 0:00:03.3]} 34... Rd4 {[%clk 0:00:02.7]} 35. Qf7# {[%clk 0:00:03.3]} 1-0

[Event "Early-Titled-Tuesday-Blitz-October-17-2023"]
[Site "Chess.com"]
[Date "2023.10.17"]
[Round "2"]
[White "Sychev_Klementy"]
[Black "Truequitos"]
[Result "1-0"]
[WhiteElo "2840"]
[BlackElo "2516"]
[TimeControl "180+1"]
[EndTime "8:19:10 PDT"]
[Termination "Sychev_Klementy won by checkmate"]

1. e4 {[%clk 0:03:00.9]} 1... e6 {[%clk 0:02:56]} 2. Qe2 {[%clk 0:02:59]} 2...
Be7 {[%clk 0:02:55.3]} 3. Nf3 {[%clk 0:02:58.4]} 3... d5 {[%clk 0:02:54.9]} 4.
d3 {[%clk 0:02:58.5]} 4... Nf6 {[%clk 0:02:54.2]} 5. g3 {[%clk 0:02:57.3]} 5...
Nc6 {[%clk 0:02:52.5]} 6. Bg2 {[%clk 0:02:57.1]} 6... dxe4 {[%clk 0:02:53.1]} 7.
dxe4 {[%clk 0:02:57.3]} 7... e5 {[%clk 0:02:53.9]} 8. O-O {[%clk 0:02:57.6]}
8... O-O {[%clk 0:02:53.6]} 9. Rd1 {[%clk 0:02:55.4]} 9... Qe8 {[%clk
0:02:53.1]} 10. c3 {[%clk 0:02:54]} 10... a5 {[%clk 0:02:53.2]} 11. h3 {[%clk
0:02:46.7]} 11... b6 {[%clk 0:02:53.3]} 12. Bg5 {[%clk 0:02:42.4]} 12... h6
{[%clk 0:02:51.9]} 13. Bxf6 {[%clk 0:02:42.1]} 13... Bxf6 {[%clk 0:02:52.4]} 14.
Na3 {[%clk 0:02:41]} 14... Ba6 {[%clk 0:02:51.3]} 15. Qe1 {[%clk 0:02:40.2]}
15... Qe6 {[%clk 0:02:46.2]} 16. Nc2 {[%clk 0:02:37.3]} 16... Rfd8 {[%clk
0:02:44.6]} 17. Ne3 {[%clk 0:02:37.3]} 17... Ne7 {[%clk 0:02:35.2]} 18. h4
{[%clk 0:02:33.5]} 18... Bd3 {[%clk 0:02:27.1]} 19. Nd5 {[%clk 0:02:30.4]} 19...
Nxd5 {[%clk 0:02:21.9]} 20. Rxd3 {[%clk 0:02:28.6]} 20... Ne7 {[%clk 0:02:17.5]}
21. Qd1 {[%clk 0:02:29]} 21... Ng6 {[%clk 0:02:07.1]} 22. Bf1 {[%clk 0:02:12.5]}
22... Be7 {[%clk 0:02:03.1]} 23. Qb3 {[%clk 0:02:09.6]} 23... Qc6 {[%clk
0:01:32.6]} 24. Rxd8+ {[%clk 0:02:06.3]} 24... Rxd8 {[%clk 0:01:27.2]} 25. Bc4
{[%clk 0:02:06.5]} 25... Qf6 {[%clk 0:01:19.3]} 26. Kg2 {[%clk 0:02:03.8]} 26...
Bc5 {[%clk 0:01:18.4]} 27. Rd1 {[%clk 0:01:58.7]} 27... Rxd1 {[%clk 0:00:47.4]}
28. Qxd1 {[%clk 0:01:59.6]} 28... Qd6 {[%clk 0:00:47.4]} 29. Qe2 {[%clk
0:01:52.4]} 29... Nf8 {[%clk 0:00:45.6]} 30. Bb3 {[%clk 0:01:49.6]} 30... Ne6
{[%clk 0:00:42.4]} 31. Qc4 {[%clk 0:01:48.1]} 31... Nd8 {[%clk 0:00:39.6]} 32.
Qb5 {[%clk 0:01:43.8]} 32... Kf8 {[%clk 0:00:33.2]} 33. Qa6 {[%clk 0:01:40.1]}
33... f6 {[%clk 0:00:20.2]} 34. Qc8 {[%clk 0:01:37.3]} 34... Ke7 {[%clk
0:00:20.5]} 35. h5 {[%clk 0:01:36.8]} 35... Qd3 {[%clk 0:00:15.4]} 36. Qf5
{[%clk 0:01:23.4]} 36... Qe2 {[%clk 0:00:11.8]} 37. Nh4 {[%clk 0:01:22.5]} 37...
Qxb2 {[%clk 0:00:04]} 38. Qf3 {[%clk 0:00:53.6]} 38... a4 {[%clk 0:00:03.9]} 39.
Nf5+ {[%clk 0:00:53.2]} 39... Kf8 {[%clk 0:00:03.5]} 40. Bxa4 {[%clk 0:00:40.2]}
40... Qxa2 {[%clk 0:00:03.9]} 41. Bd1 {[%clk 0:00:40]} 41... Qd2 {[%clk
0:00:03.8]} 42. Be2 {[%clk 0:00:38]} 42... Ne6 {[%clk 0:00:01.7]} 43. Nh4 {[%clk
0:00:36]} 43... Ng5 {[%clk 0:00:02.6]} 44. Qg4 {[%clk 0:00:36.1]} 44... Qc2
{[%clk 0:00:02.6]} 45. Qc8+ {[%clk 0:00:31.3]} 45... Kf7 {[%clk 0:00:02.9]} 46.
Bc4+ {[%clk 0:00:30.9]} 46... Ke7 {[%clk 0:00:03.3]} 47. Nf5# {[%clk 0:00:31.2]}
1-0

[Event "Early-Titled-Tuesday-Blitz-October-17-2023"]
[Site "Chess.com"]
[Date "2023.10.17"]
[Round "2"]
[White "KNVB"]
[Black "vishwa_vijeta"]
[Result "0-1"]
[WhiteElo "2680"]
[BlackElo "2536"]
[TimeControl "180+1"]
[EndTime "8:19:13 PDT"]
[Termination "vishwa_vijeta won on time"]

1. d4 {[%clk 0:03:00.9]} 1... Nf6 {[%clk 0:02:59.6]} 2. Nc3 {[%clk 0:02:55.2]}
2... d5 {[%clk 0:02:55.7]} 3. Bf4 {[%clk 0:02:54.5]} 3... e6 {[%clk 0:02:53.8]}
4. Nb5 {[%clk 0:02:53.4]} 4... Na6 {[%clk 0:02:53.8]} 5. e3 {[%clk 0:02:53.1]}
5... c6 {[%clk 0:02:52.5]} 6. Nc3 {[%clk 0:02:52.9]} 6... Qb6 {[%clk 0:02:52.2]}
7. a3 {[%clk 0:02:44.9]} 7... Be7 {[%clk 0:02:42.6]} 8. Rb1 {[%clk 0:01:28.9]}
8... O-O {[%clk 0:02:18.5]} 9. Bd3 {[%clk 0:01:09]} 9... c5 {[%clk 0:02:02.6]}
10. Nf3 {[%clk 0:01:07.4]} 10... Nh5 {[%clk 0:01:48.2]} 11. Be5 {[%clk
0:00:50.8]} 11... cxd4 {[%clk 0:01:18.8]} 12. exd4 {[%clk 0:00:35.5]} 12... Bd6
{[%clk 0:01:17.2]} 13. Bxd6 {[%clk 0:00:07.3]} 13... Qxd6 {[%clk 0:01:16.6]} 14.
g3 {[%clk 0:00:07.9]} 14... Nf6 {[%clk 0:01:03.1]} 15. O-O {[%clk 0:00:06.1]}
15... Nb8 {[%clk 0:01:03.4]} 16. Ne5 {[%clk 0:00:04.3]} 16... Nc6 {[%clk
0:01:03.4]} 17. f4 {[%clk 0:00:03.9]} 17... Nxd4 {[%clk 0:01:02.6]} 18. Bxh7+
{[%clk 0:00:03.9]} 18... Nxh7 {[%clk 0:00:59.5]} 19. Qxd4 {[%clk 0:00:04.8]}
19... Bd7 {[%clk 0:00:54.1]} 20. Qb4 {[%clk 0:00:04.5]} 20... Qc7 {[%clk
0:00:51.8]} 21. Rbd1 {[%clk 0:00:04.8]} 21... Bc6 {[%clk 0:00:49.2]} 22. Rf2
{[%clk 0:00:02.9]} 22... Rad8 {[%clk 0:00:49]} 23. Qd4 {[%clk 0:00:02.6]} 23...
Rfe8 {[%clk 0:00:48.5]} 24. Qxa7 {[%clk 0:00:02.8]} 24... f6 {[%clk 0:00:43.7]}
25. Nxc6 {[%clk 0:00:03]} 25... Qxc6 {[%clk 0:00:43.9]} 26. Qa4 {[%clk
0:00:01.8]} 26... Qb6 {[%clk 0:00:43.9]} 27. Qb4 {[%clk 0:00:01.5]} 27... Qc6
{[%clk 0:00:43.4]} 28. Qb5 {[%clk 0:00:01.6]} 28... Qc7 {[%clk 0:00:43.3]} 29.
f5 {[%clk 0:00:02.2]} 29... d4 {[%clk 0:00:37.5]} 30. fxe6 {[%clk 0:00:01.4]}
30... dxc3 {[%clk 0:00:31.3]} 31. Rxd8 {[%clk 0:00:02.3]} 31... Qxd8 {[%clk
0:00:25.1]} 32. bxc3 {[%clk 0:00:02.5]} 32... Rxe6 {[%clk 0:00:23]} 33. Qxb7
{[%clk 0:00:03]} 33... Ng5 {[%clk 0:00:18.9]} 34. Rf1 {[%clk 0:00:03]} 34... Qd2
{[%clk 0:00:17.6]} 35. h4 {[%clk 0:00:02.4]} 35... Nh3+ {[%clk 0:00:16.4]} 36.
Kh1 {[%clk 0:00:02.7]} 36... Nf2+ {[%clk 0:00:15.8]} 37. Kg1 {[%clk 0:00:02.5]}
37... Ng4 {[%clk 0:00:15.3]} 38. Qc8+ {[%clk 0:00:02.3]} 38... Kh7 {[%clk
0:00:15.9]} 0-1

[Event "Early-Titled-Tuesday-Blitz-October-17-2023"]
[Site "Chess.com"]
[Date "2023.10.17"]
[Round "2"]
[White "mfwagnerpeixoto"]
[Black "Sanyura"]
[Result "0-1"]
[WhiteElo "2334"]
[BlackElo "2539"]
[TimeControl "180+1"]
[EndTime "8:19:13 PDT"]
[Termination "Sanyura won on time"]

1. e4 {[%clk 0:03:00.9]} 1... c5 {[%clk 0:02:59.2]} 2. Nf3 {[%clk 0:03:00]} 2...
e6 {[%clk 0:02:59.5]} 3. Nc3 {[%clk 0:02:55.6]} 3... Nc6 {[%clk 0:02:59.1]} 4.
d4 {[%clk 0:02:55.6]} 4... cxd4 {[%clk 0:03:00]} 5. Nxd4 {[%clk 0:02:56]} 5...
Nf6 {[%clk 0:03:00.4]} 6. g3 {[%clk 0:02:53.8]} 6... Qc7 {[%clk 0:02:56.2]} 7.
Bg2 {[%clk 0:02:53.2]} 7... Nxd4 {[%clk 0:02:56.4]} 8. Qxd4 {[%clk 0:02:53.7]}
8... Bc5 {[%clk 0:02:56.9]} 9. Bf4 {[%clk 0:02:53.6]} 9... d6 {[%clk 0:02:57.6]}
10. Qd3 {[%clk 0:02:50.3]} 10... h6 {[%clk 0:02:58]} 11. O-O {[%clk 0:02:41.4]}
11... e5 {[%clk 0:02:58.2]} 12. Be3 {[%clk 0:02:41.6]} 12... Be6 {[%clk
0:02:56.6]} 13. h3 {[%clk 0:02:38.4]} 13... O-O {[%clk 0:02:56]} 14. Rfd1 {[%clk
0:02:34]} 14... a6 {[%clk 0:02:56.1]} 15. Bxc5 {[%clk 0:02:30.3]} 15... dxc5
{[%clk 0:02:43.7]} 16. Qd6 {[%clk 0:02:25.2]} 16... Rac8 {[%clk 0:02:39.4]} 17.
Qxc7 {[%clk 0:02:20.3]} 17... Rxc7 {[%clk 0:02:40.3]} 18. f4 {[%clk 0:02:13.6]}
18... exf4 {[%clk 0:02:32]} 19. gxf4 {[%clk 0:02:14.5]} 19... b5 {[%clk
0:02:22.4]} 20. f5 {[%clk 0:02:08.1]} 20... Bc8 {[%clk 0:02:13.6]} 21. e5 {[%clk
0:02:06.6]} 21... Nh5 {[%clk 0:02:11.9]} 22. Nd5 {[%clk 0:02:06.3]} 22... Ra7
{[%clk 0:02:09.1]} 23. f6 {[%clk 0:02:00.3]} 23... Be6 {[%clk 0:02:03.3]} 24.
fxg7 {[%clk 0:01:58.6]} 24... Kxg7 {[%clk 0:02:02.4]} 25. Bf3 {[%clk 0:01:52.7]}
25... Bxd5 {[%clk 0:01:54.3]} 26. Rxd5 {[%clk 0:01:53.6]} 26... Nf4 {[%clk
0:01:54.2]} 27. Rxc5 {[%clk 0:01:52.3]} 27... Rd8 {[%clk 0:01:52.7]} 28. Bg4
{[%clk 0:01:38.7]} 28... h5 {[%clk 0:01:44.1]} 29. Rf1 {[%clk 0:01:37]} 29...
Rd4 {[%clk 0:01:43.9]} 30. Bf5 {[%clk 0:01:31.6]} 30... Re7 {[%clk 0:01:43.4]}
31. c3 {[%clk 0:01:22.6]} 31... Rd5 {[%clk 0:01:39.3]} 32. Rc6 {[%clk
0:01:05.1]} 32... Ne2+ {[%clk 0:01:19.4]} 33. Kh2 {[%clk 0:00:59.5]} 33... Rexe5
{[%clk 0:01:17.5]} 34. Bc8 {[%clk 0:00:26.4]} 34... h4 {[%clk 0:01:03.4]} 35.
Rc7 {[%clk 0:00:25.5]} 35... Ng3 {[%clk 0:00:50.5]} 36. Rcxf7+ {[%clk 0:00:17]}
36... Kg6 {[%clk 0:00:48.8]} 37. R1f6+ {[%clk 0:00:16]} 37... Kg5 {[%clk
0:00:48.6]} 38. Bxa6 {[%clk 0:00:11.2]} 38... Ne4 {[%clk 0:00:36.4]} 39. Rf1
{[%clk 0:00:05.5]} 39... Rd2+ {[%clk 0:00:36.1]} 40. Kg1 {[%clk 0:00:05.7]}
40... Kh5 {[%clk 0:00:27.6]} 41. Rh7+ {[%clk 0:00:04.9]} 41... Kg6 {[%clk
0:00:27.9]} 42. Rhf7 {[%clk 0:00:04.3]} 42... Rg5+ {[%clk 0:00:27.3]} 43. Kh1
{[%clk 0:00:01.4]} 43... Ng3+ {[%clk 0:00:27.9]} 0-1

[Event "Early-Titled-Tuesday-Blitz-October-17-2023"]
[Site "Chess.com"]
[Date "2023.10.17"]
[Round "2"]
[White "JiiHart"]
[Black "stasOR4ik"]
[Result "0-1"]
[WhiteElo "2197"]
[BlackElo "2458"]
[TimeControl "180+1"]
[EndTime "8:19:13 PDT"]
[Termination "stasOR4ik won on time"]

1. e4 {[%clk 0:03:00.9]} 1... c6 {[%clk 0:02:59.9]} 2. d4 {[%clk 0:03:00.6]}
2... d5 {[%clk 0:03:00.8]} 3. Nc3 {[%clk 0:03:01]} 3... dxe4 {[%clk 0:03:00.8]}
4. Nxe4 {[%clk 0:03:01.5]} 4... Nf6 {[%clk 0:03:01.7]} 5. Nxf6+ {[%clk
0:03:01.2]} 5... exf6 {[%clk 0:03:02.6]} 6. Bf4 {[%clk 0:03:01.2]} 6... Bd6
{[%clk 0:02:51.5]} 7. Qf3 {[%clk 0:03:01]} 7... Be6 {[%clk 0:02:37.8]} 8. Bd3
{[%clk 0:02:58.1]} 8... Bd5 {[%clk 0:02:17.6]} 9. Qe2+ {[%clk 0:02:33.3]} 9...
Kd7 {[%clk 0:01:56.3]} 10. Bxd6 {[%clk 0:02:16.5]} 10... Kxd6 {[%clk 0:01:54.1]}
11. O-O-O {[%clk 0:02:14.4]} 11... Bxg2 {[%clk 0:01:47.2]} 12. Qg4 {[%clk
0:02:02.1]} 12... Bxh1 {[%clk 0:01:36.4]} 13. Qf4+ {[%clk 0:01:43.7]} 13... Ke7
{[%clk 0:01:34.6]} 14. Re1+ {[%clk 0:01:42.6]} 14... Kf8 {[%clk 0:01:34.5]} 15.
f3 {[%clk 0:01:40.6]} 15... Na6 {[%clk 0:01:28]} 16. c3 {[%clk 0:01:35.2]} 16...
Nc7 {[%clk 0:01:24.9]} 17. Ne2 {[%clk 0:01:31.9]} 17... Nd5 {[%clk 0:00:58.6]}
18. Qg3 {[%clk 0:01:31.1]} 18... h5 {[%clk 0:00:51.4]} 19. Rxh1 {[%clk 0:01:30]}
19... h4 {[%clk 0:00:48.5]} 20. Qg4 {[%clk 0:01:11]} 20... Qd6 {[%clk
0:00:43.3]} 21. Rg1 {[%clk 0:01:07.1]} 21... g6 {[%clk 0:00:37.1]} 22. f4 {[%clk
0:01:06.6]} 22... Re8 {[%clk 0:00:31.8]} 23. Kd2 {[%clk 0:00:19.6]} 23... Qe6
{[%clk 0:00:21.7]} 24. f5 {[%clk 0:00:19.4]} 24... Qe3+ {[%clk 0:00:21.6]} 25.
Kc2 {[%clk 0:00:17.2]} 25... g5 {[%clk 0:00:19.5]} 26. a3 {[%clk 0:00:14.6]}
26... b5 {[%clk 0:00:19]} 27. h3 {[%clk 0:00:10.6]} 27... a5 {[%clk 0:00:18.5]}
28. b3 {[%clk 0:00:08.4]} 28... Kg7 {[%clk 0:00:17]} 29. c4 {[%clk 0:00:08.4]}
29... bxc4 {[%clk 0:00:16.6]} 30. bxc4 {[%clk 0:00:08.9]} 30... Nb6 {[%clk
0:00:15.3]} 31. Nf4 {[%clk 0:00:05.2]} 31... Qf2+ {[%clk 0:00:10.7]} 32. Kc3
{[%clk 0:00:05.4]} 32... Na4+ {[%clk 0:00:09.6]} 33. Kb3 {[%clk 0:00:05.8]}
33... Rb8+ {[%clk 0:00:06.6]} 34. Kxa4 {[%clk 0:00:05.8]} 34... Qb2 {[%clk
0:00:06.4]} 35. Ne6+ {[%clk 0:00:03.7]} 35... fxe6 {[%clk 0:00:06.4]} 0-1

[Event "Early-Titled-Tuesday-Blitz-October-17-2023"]
[Site "Chess.com"]
[Date "2023.10.17"]
[Round "2"]
[White "ExcitingTrap"]
[Black "Maluco_do_Natal_00"]
[Result "1-0"]
[WhiteElo "2422"]
[BlackElo "1985"]
[TimeControl "180+1"]
[EndTime "8:19:14 PDT"]
[Termination "ExcitingTrap won on time"]

1. e4 {[%clk 0:03:00.9]} 1... c5 {[%clk 0:02:59.4]} 2. Nf3 {[%clk 0:03:00.8]}
2... Nc6 {[%clk 0:02:59.7]} 3. d4 {[%clk 0:03:00.6]} 3... cxd4 {[%clk
0:03:00.6]} 4. Nxd4 {[%clk 0:03:01.3]} 4... Nf6 {[%clk 0:03:01]} 5. Nc3 {[%clk
0:03:00.9]} 5... e5 {[%clk 0:03:01]} 6. Ndb5 {[%clk 0:03:01]} 6... d6 {[%clk
0:03:01.1]} 7. Nd5 {[%clk 0:03:01.2]} 7... Nxd5 {[%clk 0:03:00.2]} 8. exd5
{[%clk 0:03:02.1]} 8... Nb8 {[%clk 0:03:00.6]} 9. c4 {[%clk 0:03:01.4]} 9... Be7
{[%clk 0:03:00.9]} 10. Bd3 {[%clk 0:03:01.3]} 10... f5 {[%clk 0:02:56.6]} 11. f4
{[%clk 0:02:57.4]} 11... e4 {[%clk 0:02:56.3]} 12. Be2 {[%clk 0:02:56.8]} 12...
a6 {[%clk 0:02:56.3]} 13. Nd4 {[%clk 0:02:55.9]} 13... O-O {[%clk 0:02:54.7]}
14. O-O {[%clk 0:02:54.6]} 14... Nd7 {[%clk 0:02:51.5]} 15. Ne6 {[%clk
0:02:53.4]} 15... Qb6+ {[%clk 0:02:49.3]} 16. Kh1 {[%clk 0:02:51.5]} 16... Rf6
{[%clk 0:02:49.5]} 17. b4 {[%clk 0:02:39.1]} 17... Nf8 {[%clk 0:02:48]} 18. c5
{[%clk 0:02:22.9]} 18... Qxb4 {[%clk 0:02:41.9]} 19. Bd2 {[%clk 0:02:19.3]}
19... Qa3 {[%clk 0:02:20.9]} 20. Nc7 {[%clk 0:02:16.8]} 20... Rb8 {[%clk
0:02:05.8]} 21. Rb1 {[%clk 0:02:10.9]} 21... dxc5 {[%clk 0:01:24.7]} 22. Bc4
{[%clk 0:02:08.8]} 22... Kh8 {[%clk 0:00:43.3]} 23. Ne8 {[%clk 0:01:59]} 23...
Rh6 {[%clk 0:00:36.9]} 24. Be1 {[%clk 0:00:44.3]} 24... Bd7 {[%clk 0:00:19.9]}
25. Nc7 {[%clk 0:00:30.1]} 25... Bh4 {[%clk 0:00:13]} 26. Bxh4 {[%clk
0:00:08.1]} 26... Rxh4 {[%clk 0:00:12.8]} 27. Qe1 {[%clk 0:00:06.9]} 27... Rh6
{[%clk 0:00:10.1]} 28. Rb3 {[%clk 0:00:06.5]} 28... Qa4 {[%clk 0:00:07.7]} 29.
Qc3 {[%clk 0:00:06.4]} 29... b5 {[%clk 0:00:04.4]} 30. Be2 {[%clk 0:00:04.7]}
30... c4 {[%clk 0:00:04]} 31. Bxc4 {[%clk 0:00:02.2]} 1-0

[Event "Early-Titled-Tuesday-Blitz-October-17-2023"]
[Site "Chess.com"]
[Date "2023.10.17"]
[Round "2"]
[White "frederiksvane"]
[Black "borocotoajua"]
[Result "1-0"]
[WhiteElo "2911"]
[BlackElo "2610"]
[TimeControl "180+1"]
[EndTime "8:19:17 PDT"]
[Termination "frederiksvane won on time"]

1. a3 {[%clk 0:02:55.9]} 1... g6 {[%clk 0:02:52]} 2. d4 {[%clk 0:02:53.2]} 2...
d5 {[%clk 0:02:50.6]} 3. Nf3 {[%clk 0:02:51.6]} 3... Bg7 {[%clk 0:02:50.7]} 4.
e3 {[%clk 0:02:52.3]} 4... Nf6 {[%clk 0:02:49.6]} 5. b4 {[%clk 0:02:45.7]} 5...
O-O {[%clk 0:02:48.1]} 6. Be2 {[%clk 0:02:45.7]} 6... Ne4 {[%clk 0:02:45.8]} 7.
O-O {[%clk 0:02:44.9]} 7... a5 {[%clk 0:02:42.8]} 8. Bb2 {[%clk 0:02:40.2]} 8...
c5 {[%clk 0:02:34.6]} 9. bxc5 {[%clk 0:02:39.6]} 9... Nxc5 {[%clk 0:02:33.9]}
10. a4 {[%clk 0:02:39.9]} 10... Ne4 {[%clk 0:02:33.5]} 11. Na3 {[%clk
0:02:38.8]} 11... Nc6 {[%clk 0:02:30.1]} 12. Nb5 {[%clk 0:02:38.5]} 12... Bf5
{[%clk 0:02:28]} 13. c3 {[%clk 0:02:33.5]} 13... Rc8 {[%clk 0:02:23.3]} 14. Nd2
{[%clk 0:02:33.1]} 14... e5 {[%clk 0:02:10.1]} 15. Nxe4 {[%clk 0:02:23.3]} 15...
Bxe4 {[%clk 0:02:09.8]} 16. Ba3 {[%clk 0:02:23.3]} 16... exd4 {[%clk 0:02:08.9]}
17. Bxf8 {[%clk 0:02:17.4]} 17... Bxf8 {[%clk 0:01:51.7]} 18. cxd4 {[%clk
0:02:17.2]} 18... Nb4 {[%clk 0:01:32.3]} 19. Rc1 {[%clk 0:02:08.5]} 19... Qg5
{[%clk 0:01:25.5]} 20. g3 {[%clk 0:02:06]} 20... Re8 {[%clk 0:01:05.6]} 21. Bf3
{[%clk 0:02:02.3]} 21... Bd3 {[%clk 0:00:54.4]} 22. Re1 {[%clk 0:02:02.5]} 22...
h5 {[%clk 0:00:53.2]} 23. h4 {[%clk 0:02:02.2]} 23... Qf6 {[%clk 0:00:43.4]} 24.
Bg2 {[%clk 0:01:54.9]} 24... Bc4 {[%clk 0:00:37.4]} 25. Rc3 {[%clk 0:01:44.1]}
25... Na2 {[%clk 0:00:23.8]} 26. Rxc4 {[%clk 0:01:43.3]} 26... dxc4 {[%clk
0:00:23.4]} 27. Qc2 {[%clk 0:01:43.7]} 27... Nb4 {[%clk 0:00:20.5]} 28. Qxc4
{[%clk 0:01:43.9]} 28... g5 {[%clk 0:00:17]} 29. hxg5 {[%clk 0:01:26.4]} 29...
Qxg5 {[%clk 0:00:17.9]} 30. Qc7 {[%clk 0:01:26.3]} 30... Nd3 {[%clk 0:00:09.5]}
31. Re2 {[%clk 0:01:16.5]} 31... Qg4 {[%clk 0:00:05.1]} 32. Rd2 {[%clk
0:01:05.3]} 32... Ne1 {[%clk 0:00:05]} 33. Qf4 {[%clk 0:01:00.6]} 33... Bb4
{[%clk 0:00:05.6]} 34. Qxg4+ {[%clk 0:00:54.2]} 34... hxg4 {[%clk 0:00:06.5]}
35. Rd1 {[%clk 0:00:52.6]} 35... Nf3+ {[%clk 0:00:06.4]} 36. Bxf3 {[%clk
0:00:52.8]} 36... gxf3 {[%clk 0:00:07.3]} 37. d5 {[%clk 0:00:52.3]} 37... Rd8
{[%clk 0:00:07.4]} 38. g4 {[%clk 0:00:48.7]} 38... Kg7 {[%clk 0:00:05.6]} 39.
Nd4 {[%clk 0:00:26.1]} 39... Kf6 {[%clk 0:00:03.9]} 40. Nxf3 {[%clk 0:00:26.4]}
40... Bd6 {[%clk 0:00:02.6]} 41. e4 {[%clk 0:00:22.7]} 41... b5 {[%clk
0:00:01.4]} 42. g5+ {[%clk 0:00:22.3]} 42... Ke7 {[%clk 0:00:01.3]} 43. e5
{[%clk 0:00:20.6]} 43... Bb4 {[%clk 0:00:01.5]} 44. axb5 {[%clk 0:00:21]} 44...
a4 {[%clk 0:00:01.5]} 45. Rd4 {[%clk 0:00:21.7]} 1-0